Workbook

Sheet AÇILIŞ

Sheet KURUM BİLGİLERİ
A1: Bakanlık Adı | B1: MİLLİ EĞİTİM BAKANLIĞI
A2: İl-İlçe | B2: ÇANKIRI-YAPRAKLI
A3: Okul Adı | B3: Yapraklı İlçe Milli Eğitim Müd.
A4: Saymanlık Adı | B4: Yapraklı Malmüdürlüğü
A5: Saymanlık Kodu
A6: Vergi No
A7: Vergi Dairesi
A8: SGK Sicil No
A9: Banka Şubesi | B9: Yapraklı
A10: Banka Hesap No
A11: Mutemet | B11: ….............. | C11: Memur
A12: Gerçekleştirme Görevlisi | B12: Ümit YURTOĞLU | C12: Şube Müdürü
A13: Harcama Yetkilisi | B13: Hüseyin BALTA | C13: İlçe Milli Eğitim Müdürü
A14: Muhasebe Yetkilisi | B14: ….......... | C14: Malmüdürü

Sheet PERSONEL BİLGİLERİ
A1: Sıra No | B1: Adı Soyadı | C1: TC KİMLİK NO | D1: İBAN | E1: Medeni Hali | F1: AGİ
A2: 1 | B2: Ümit YURTOĞLU | C2: 22222222222 | D2: TR…................. | E2: Çalışan eş-4 Çocuk | F2: =IF(E2=I$4,V$5,IF(E2=I$5,V$6,IF(E2=I$6,V$7,IF(OR(E2=I$7,E2=I$11),V$8,IF(OR(E2=I$8,E2=I$13),V$9,IF(I$9=E2,V$15,IF(I$10=E2,V$18,IF(I$12=E2,V$18)))))))) -> 429.3 | P2: Eşi Çalışmayanlar için asgari geçim indirimi | Q2: Asgari ücretinizi brüt olarak yazınız: | W2: 3577.5
A3: 2 | B3: Ali SEĞMEN | C3: 111111111 | D3: TR12345657896633 | E3: Çalışmayan eş-1 Çocuk | F3: =IF(E3=I$4,V$5,IF(E3=I$5,V$6,IF(E3=I$6,V$7,IF(OR(E3=I$7,E3=I$11),V$8,IF(OR(E3=I$8,E3=I$13),V$9,IF(I$9=E3,V$15,IF(I$10=E3,V$18,IF(I$12=E3,V$18)))))))) -> 362.221875
A4: 3 | F4: FALSE | I4: Bekar | P4: Asgari geçim indiriminden yararlanan | Q4: Oranlar
A5: 4 | F5: FALSE | I5: Çalışmayan eş-0 Çocuk | P5: Çalışanın kendisi | Q5: 0.5 | S5: =W2*50/100 -> 1788.75 | U5: =S5*15/100 -> 268.3125 | V5: =U5 -> 268.3125 | W5: Çalışanın kendisi (bekar)
A6: 5 | F6: FALSE | I6: Çalışmayan eş-1 Çocuk | P6: Çalışmayan ve herhangi bir geliri olmayan eş | Q6: 0.1 | S6: =W2*10/100 -> 357.75 | U6: =S6*15/100 -> 53.6625 | V6: =U5+U6 -> 321.975 | W6: Evli eşi çalışmayan ve çocuksuz
A7: 6 | F7: FALSE | I7: Çalışmayan eş-2 Çocuk | P7: 1. çocuk | Q7: 0.075 | S7: =W2*7.5/100 -> 268.3125 | U7: =S7*15/100 -> 40.246875 | V7: =U5+U6+U7 -> 362.221875 | W7: Evli eşi çalışmayan ve 1 çocuklu
A8: 7 | F8: FALSE | I8: Çalışmayan eş-3 Çocuk | P8: 2. çocuk | Q8: 0.075 | S8: =W2*7.5/100 -> 268.3125 | U8: =S8*15/100 -> 40.246875 | V8: =U5+U6+U7+U8 -> 402.46875 | W8: Evli eşi çalışmayan ve 2 çocuklu
A9: 8 | F9: FALSE | I9: Çalışan eş-1 Çocuk | P9: 3. çocuk | Q9: 0.1 | S9: =W2*10/100 -> 357.75 | U9: =S9*15/100 -> 53.6625 | V9: =U5+U6+U7+U8+U9 -> 456.13125 | W9: Evli eşi çalışmayan ve 3 çocuklu üst sınır
A10: 9 | F10: FALSE | I10: Çalışan eş-2 Çocuk
A11: 10 | F11: FALSE | I11: Çalışan eş-3 Çocuk | P11: Eşi Çalışanlar için asgari geçim indirimi
A12: 11 | F12: FALSE | I12: Çalışan eş-4 Çocuk
A13: 12 | F13: FALSE | I13: Çalışan eş-5 Çocuk | P13: Asgari geçim indiriminden yararlanan | Q13: Oranlar
A14: 13 | F14: FALSE | P14: Çalışanın kendisi | Q14: 0.5 | S14: =W2*50/100 -> 1788.75 | U14: =S14*15/100 -> 268.3125 | V14: =U14 -> 268.3125 | W14: Evli eşi çalışan ve çocuksuz
A15: 14 | F15: FALSE | P15: 1. çocuk | Q15: 0.075 | S15: =W2*7.5/100 -> 268.3125 | U15: 40.246875 | V15: =U14+U15 -> 308.559375 | W15: Evli eşi çalışan ve 1 çocuklu
A16: 15 | F16: FALSE | P16: 2. çocuk | Q16: 0.075 | S16: =W2*7.5/100 -> 268.3125 | U16: 40.246875 | V16: =U14+U15+U16 -> 348.80625 | W16: Evli eşi çalışan ve 2 çocuklu
P17: 3. çocuk | Q17: 0.1 | S17: =W2*10/100 -> 357.75 | U17: 53.6625 | V17: =U14+U15+U16+U17 -> 402.46875 | W17: Evli eşi çalışan ve 3 çocuklu
P18: 4. çocuk | Q18: 0.05 | S18: =W2*5/100 -> 178.875 | U18: 26.83125 | V18: =U14+U15+U16+U17+U18 -> 429.3 | W18: Evli eşi çalışan ve 4 çocuklu
P19: 5. çocuk | Q19: 0.05 | S19: =W2*5/100 -> 178.875 | U19: 26.83125 | V19: =U14+U15+U16+U17+U18+U19 -> 456.13125 | W19: Evli eşi çalışan ve 5 çocuklu üst sınır

Sheet PUANTAJ GİRİŞİ
R1: 23.21 | S1: GÜNDÜZ-İYEP
A2: Dairesi veya Okul Adı | C2: ='KURUM BİLGİLERİ'!B3:B3 -> Yapraklı İlçe Milli Eğitim Müd. | R2: 24.87 | S2: GECE-İYEP | AE2: Ait Olduğu Yıl | AI2: 2021
A3: İşyeri Sicil No | C3: ='KURUM BİLGİLERİ'!B8:B8 -> 0 | R3: 46.42 | S3: TAKVİYE KURSU GÜNDÜZ | AE3: Ait Olduğu Ay | AI3: 2
R4: 49.74 | S4: TAKVİYE KURSU GECE
A6: Sıra No | B6: TC. Kimlik No | C6: Adı Soyadı | D6: Ek Ders Türü (Açılır Listeden Seçiniz) | E6: 1 | F6: 2 | G6: 3 | H6: 4 | I6: 5 | J6: 6 | K6: 7 | L6: 8 | M6: 9 | N6: 10 | O6: 11 | P6: 12 | Q6: 13 | R6: 14 | S6: 15 | T6: 16 | U6: 17 | V6: 18 | W6: 19 | X6: 20 | Y6: 21 | Z6: 22 | AA6: 23 | AB6: 24 | AC6: 25 | AD6: 26 | AE6: 27 | AF6: 28 | AG6: 29 | AH6: 30 | AI6: 31 | AJ6: G. Toplam | AK6: KATSAYI | AL6: BRÜT ÜCRET | AM6: TOPLAM ÜCRET
E7: Pazartesi | F7: Salı | G7: Çarşamba | H7: Perşembe | I7: Cuma | J7: Cumartesi | K7: Pazar | L7: Pazartesi | M7: Salı | N7: Çarşamba | O7: Perşembe | P7: Cuma | Q7: Cumartesi | R7: Pazar | S7: Pazartesi | T7: Salı | U7: Çarşamba | V7: Perşembe | W7: Cuma | X7: Cumartesi | Y7: Pazar | Z7: Pazartesi | AA7: Salı | AB7: Çarşamba | AC7: Perşembe | AD7: Cuma | AE7: Cumartesi | AF7: Pazar | AG7: Pazartesi | AH7: Salı | AI7: Çarşamba
A8: 1 | B8: ='PERSONEL BİLGİLERİ'!C2 -> 22222222222 | C8: ='PERSONEL BİLGİLERİ'!B2 -> Ümit YURTOĞLU | D8: GÜNDÜZ-İYEP | E8: 4 | F8: 2 | G8: 7 | H8: 8 | I8: 4 | L8: 5 | M8: 100 | N8: 5 | O8: 8 | P8: 4 | S8: 5 | T8: 2 | U8: 7 | V8: 8 | W8: 4 | Z8: 5 | AA8: 2 | AB8: 7 | AC8: 8 | AD8: 4 | AG8: 5 | AH8: 2 | AI8: 7 | AJ8: =SUM(E8:AI8) -> 213 | AK8: =IF(D8=$S$1,$R$1,IF(D8=$S$2,$R$2,IF(D8=$S$3,$R$3,IF(D8=$S$4,$R$4)))) -> 23.21 | AL8: =AJ8*AK8 -> 4943.73 | AM8: =SUM(AL8:AL8) -> 4943.73
A9: 2 | B9: ='PERSONEL BİLGİLERİ'!C3 -> 111111111 | C9: ='PERSONEL BİLGİLERİ'!B3 -> Ali SEĞMEN | D9: GECE-İYEP | E9: 2 | F9: 5 | G9: 6 | H9: 8 | I9: 4 | L9: 5 | M9: 6 | N9: 5 | O9: 6 | P9: 5 | S9: 6 | T9: 6 | U9: 6 | V9: 6 | W9: 6 | Z9: 6 | AA9: 6 | AB9: 6 | AC9: 6 | AD9: 6 | AG9: 6 | AH9: 6 | AI9: 6 | AJ9: =SUM(E9:AI9) -> 130 | AK9: 24.87 | AL9: =AJ9*AK9 -> 3233.1 | AM9: =AL9 -> 3233.1
A10: 3 | B10: ='PERSONEL BİLGİLERİ'!C4 -> 0 | C10: ='PERSONEL BİLGİLERİ'!B4 -> 0 | AJ10: 0 | AK10: FALSE | AL10: 0 | AM10: =AL10 -> 0
A11: 4 | B11: ='PERSONEL BİLGİLERİ'!C5 -> 0 | C11: ='PERSONEL BİLGİLERİ'!B5 -> 0 | AJ11: 0 | AK11: FALSE | AL11: 0 | AM11: 0
A12: 5 | B12: ='PERSONEL BİLGİLERİ'!C6 -> 0 | C12: ='PERSONEL BİLGİLERİ'!B6 -> 0 | AJ12: 0 | AK12: FALSE | AL12: 0 | AM12: 0
A13: 6 | B13: ='PERSONEL BİLGİLERİ'!C7 -> 0 | C13: ='PERSONEL BİLGİLERİ'!B7 -> 0 | AJ13: 0 | AK13: FALSE | AL13: 0 | AM13: 0
A14: 7 | B14: ='PERSONEL BİLGİLERİ'!C8 -> 0 | C14: ='PERSONEL BİLGİLERİ'!B8 -> 0 | AJ14: 0 | AK14: FALSE | AL14: 0 | AM14: 0
A15: 8 | B15: ='PERSONEL BİLGİLERİ'!C9 -> 0 | C15: ='PERSONEL BİLGİLERİ'!B9 -> 0 | AJ15: 0 | AK15: FALSE | AL15: 0 | AM15: 0
A16: 9 | B16: ='PERSONEL BİLGİLERİ'!C10 -> 0 | C16: ='PERSONEL BİLGİLERİ'!B10 -> 0 | AJ16: 0 | AK16: FALSE | AL16: 0 | AM16: 0
A17: 10 | B17: ='PERSONEL BİLGİLERİ'!C11 -> 0 | C17: ='PERSONEL BİLGİLERİ'!B11 -> 0 | AJ17: 0 | AK17: FALSE | AL17: 0 | AM17: 0

Sheet BORDRO
C1: YAPRAKLI İLÇE MİLLİ EĞİTİM MÜDÜRLÜĞÜ 2021-ŞUBAT AYI EK DERS KARŞILIĞI ÇALIŞAN ÖĞRETMENLER ÜCRET BORDROSU
A2: Sıra No | B2: Adı Soyadı | C2: TC. | D2: Ders Saati Toplam | E2: Ek Ders Ücreti BRÜT | F2: SGK | K2: TOPLAM (PEK) | L2: AGİ | M2: GEÇMİŞ AYLAR VERGİ MATRAH TOPLAMI | N2: VERGİ MATRAHI | O2: KESİNTİLER | U2: NET ELE GEÇEN
F3: Prim Gün Sayısı | G3: SGDP | H3: SGK Prim işveren(mal-yaş-öl) | I3: GSSP işveren | J3: Kısa V. Sig. Kol.-işveren | L3: Tutar | O3: GELİR VERGİSİ | P3: DAMGA VERGİSİ | Q3: SGDP DEVLET | R3: SGK PRİM KİŞİ(mal-yaş-öl) | S3: GSSP KİŞİ | T3: TOPLAM KESİNTİ
F4: 7.5 | G4: 0.225 | H4: 0.11 | I4: 0.075 | J4: 0.02 | O4: 0.15 | P4: 0.00759 | Q4: 0.225 | R4: 0.09 | S4: 0.05
A5: 1 | B5: ='PERSONEL BİLGİLERİ'!B2 -> Ümit YURTOĞLU | C5: ='PERSONEL BİLGİLERİ'!C2 -> 22222222222 | D5: =SUM('PUANTAJ GİRİŞİ'!AJ8:AJ8) -> 213 | E5: ='PUANTAJ GİRİŞİ'!AL8 -> 4943.73 | F5: =ROUNDUP(D5/$F$4,0) -> 29 | H5: =E5*$H$4 -> 543.8103 | I5: =E5*$I$4 -> 370.77975 | J5: =E5*$J$4 -> 98.8746 | K5: =SUM(E5,H5:J5) -> 5957.19465 | L5: ='PERSONEL BİLGİLERİ'!F2 -> 429.3 | M5: ='VERGİ MATRAHI'!O2 -> 6251.61 | N5: =E5-R5-S5 -> 4251.6078 | O5: =N5*$O$4 -> 637.74117 | P5: =E5*$P$4 -> 37.5229107 | R5: =E5*$R$4 -> 444.9357 | S5: =E5*$S$4 -> 247.1865 | T5: =SUM(O5:S5) -> 1367.386281 | U5: =E5+L5-T5 -> 4005.643719
A6: 2 | B6: ='PERSONEL BİLGİLERİ'!B3 -> Ali SEĞMEN | C6: ='PERSONEL BİLGİLERİ'!C3 -> 111111111 | D6: =SUM('PUANTAJ GİRİŞİ'!AJ9:AJ9) -> 130 | E6: ='PUANTAJ GİRİŞİ'!AL9 -> 3233.1 | F6: =ROUNDUP(D6/$F$4,0) -> 18 | H6: =E6*$H$4 -> 355.641 | I6: =E6*$I$4 -> 242.4825 | J6: =E6*$J$4 -> 64.662 | K6: =SUM(E6,H6:J6) -> 3895.8855 | L6: ='PERSONEL BİLGİLERİ'!F3 -> 362.221875 | M6: ='VERGİ MATRAHI'!O3 -> 4280.47 | N6: 2780.466 | O6: =N6*$O$4 -> 417.0699 | P6: =E6*$P$4 -> 24.539229 | R6: =E6*$R$4 -> 290.979 | S6: =E6*$S$4 -> 161.655 | T6: =SUM(O6:S6) -> 894.243129 | U6: 2701.078746
A7: 3 | B7: ='PERSONEL BİLGİLERİ'!B4 -> 0 | C7: ='PERSONEL BİLGİLERİ'!C4 -> 0 | D7: =SUM('PUANTAJ GİRİŞİ'!AJ10:AJ10) -> 0 | E7: ='PUANTAJ GİRİŞİ'!AL10 -> 0 | F7: 0 | H7: 0 | I7: 0 | J7: 0 | K7: 0 | L7: ='PERSONEL BİLGİLERİ'!F4 -> FALSE | M7: ='VERGİ MATRAHI'!O4 -> 0 | N7: 0 | O7: 0 | P7: 0 | R7: 0 | S7: 0 | T7: 0 | U7: 0
A8: 4 | B8: ='PERSONEL BİLGİLERİ'!B5 -> 0 | C8: ='PERSONEL BİLGİLERİ'!C5 -> 0 | D8: =SUM('PUANTAJ GİRİŞİ'!AJ11:AJ11) -> 0 | E8: ='PUANTAJ GİRİŞİ'!AL11 -> 0 | F8: 0 | H8: 0 | I8: 0 | J8: 0 | K8: 0 | L8: ='PERSONEL BİLGİLERİ'!F5 -> FALSE | M8: ='VERGİ MATRAHI'!O5 -> 0 | N8: 0 | O8: 0 | P8: 0 | R8: 0 | S8: 0 | T8: 0 | U8: 0
A9: 5 | B9: ='PERSONEL BİLGİLERİ'!B6 -> 0 | C9: ='PERSONEL BİLGİLERİ'!C6 -> 0 | D9: =SUM('PUANTAJ GİRİŞİ'!AJ12:AJ12) -> 0 | E9: ='PUANTAJ GİRİŞİ'!AL12 -> 0 | F9: 0 | H9: 0 | I9: 0 | J9: 0 | K9: 0 | L9: ='PERSONEL BİLGİLERİ'!F6 -> FALSE | M9: ='VERGİ MATRAHI'!O6 -> 0 | N9: 0 | O9: 0 | P9: 0 | R9: 0 | S9: 0 | T9: 0 | U9: 0
A10: 6 | B10: ='PERSONEL BİLGİLERİ'!B7 -> 0 | C10: ='PERSONEL BİLGİLERİ'!C7 -> 0 | D10: =SUM('PUANTAJ GİRİŞİ'!AJ13:AJ13) -> 0 | E10: ='PUANTAJ GİRİŞİ'!AL13 -> 0 | F10: 0 | H10: 0 | I10: 0 | J10: 0 | K10: 0 | L10: ='PERSONEL BİLGİLERİ'!F7 -> FALSE | M10: ='VERGİ MATRAHI'!O7 -> 0 | N10: 0 | O10: 0 | P10: 0 | R10: 0 | S10: 0 | T10: 0 | U10: 0
A11: 7 | B11: ='PERSONEL BİLGİLERİ'!B8 -> 0 | C11: ='PERSONEL BİLGİLERİ'!C8 -> 0 | D11: =SUM('PUANTAJ GİRİŞİ'!AJ14:AJ14) -> 0 | E11: ='PUANTAJ GİRİŞİ'!AL14 -> 0 | F11: 0 | H11: 0 | I11: 0 | J11: 0 | K11: 0 | L11: ='PERSONEL BİLGİLERİ'!F8 -> FALSE | M11: ='VERGİ MATRAHI'!O8 -> 0 | N11: 0 | O11: 0 | P11: 0 | R11: 0 | S11: 0 | T11: 0 | U11: 0
A12: 8 | B12: ='PERSONEL BİLGİLERİ'!B9 -> 0 | C12: ='PERSONEL BİLGİLERİ'!C9 -> 0 | D12: =SUM('PUANTAJ GİRİŞİ'!AJ15:AJ15) -> 0 | E12: ='PUANTAJ GİRİŞİ'!AL15 -> 0 | F12: 0 | H12: 0 | I12: 0 | J12: 0 | K12: 0 | L12: ='PERSONEL BİLGİLERİ'!F9 -> FALSE | M12: ='VERGİ MATRAHI'!O9 -> 0 | N12: 0 | O12: 0 | P12: 0 | R12: 0 | S12: 0 | T12: 0 | U12: 0
A13: 9 | B13: ='PERSONEL BİLGİLERİ'!B10 -> 0 | C13: ='PERSONEL BİLGİLERİ'!C10 -> 0 | D13: =SUM('PUANTAJ GİRİŞİ'!AJ16:AJ16) -> 0 | E13: ='PUANTAJ GİRİŞİ'!AL16 -> 0 | F13: 0 | H13: 0 | I13: 0 | J13: 0 | K13: 0 | L13: ='PERSONEL BİLGİLERİ'!F10 -> FALSE | M13: ='VERGİ MATRAHI'!O10 -> 0 | N13: 0 | O13: 0 | P13: 0 | R13: 0 | S13: 0 | T13: 0 | U13: 0
A14: 10 | B14: ='PERSONEL BİLGİLERİ'!B11 -> 0 | C14: ='PERSONEL BİLGİLERİ'!C11 -> 0 | D14: =SUM('PUANTAJ GİRİŞİ'!AJ17:AJ17) -> 0 | E14: ='PUANTAJ GİRİŞİ'!AL17 -> 0 | F14: 0 | H14: 0 | I14: 0 | J14: 0 | K14: 0 | L14: ='PERSONEL BİLGİLERİ'!F11 -> FALSE | M14: ='VERGİ MATRAHI'!O11 -> 0 | N14: 0 | O14: 0 | P14: 0 | R14: 0 | S14: 0 | T14: 0 | U14: 0

Sheet BANKA LİSTESİ
A1: BANKA LİSTESİ
A2: Muhasebe Biriminin Adı | C2: ='KURUM BİLGİLERİ'!B4 -> Yapraklı Malmüdürlüğü | D2: Muhasebe Biriminin Kodu | E2: ='KURUM BİLGİLERİ'!B5 -> 0
A3: Harcama Biriminin Adı | C3: İlçe Milli Eğitim Müdürlüğü | D3: Harcama Biriminin Kodu | E3: 285
A4: Banka Adı | C4: Halkbank | D4: Şube Adı | E4: ='KURUM BİLGİLERİ'!B2 -> ÇANKIRI-YAPRAKLI
A5: Ücretin Ait Olduğu Yıl | C5: 2020 | D5: Ücretin Ait Olduğu Ay | E5: ŞUBAT
A7: SN | B7: T.C. Kimlik No | C7: Adı Soyadı | D7: Banka Hesap No / IBAN | E7: Ödenecek Net Aylık Tutar
A8: 1 | B8: =BORDRO!C5 -> 22222222222 | C8: ='PERSONEL BİLGİLERİ'!B2 -> Ümit YURTOĞLU | D8: ='PERSONEL BİLGİLERİ'!D2 -> TR…................. | E8: =BORDRO!U5 -> 4005.643719
A9: 2 | B9: =BORDRO!C6 -> 111111111 | C9: ='PERSONEL BİLGİLERİ'!B3 -> Ali SEĞMEN | D9: ='PERSONEL BİLGİLERİ'!D3 -> TR12345657896633 | E9: =BORDRO!U6 -> 2701.078746
A10: 3 | B10: =BORDRO!C7 -> 0 | C10: ='PERSONEL BİLGİLERİ'!B4 -> 0 | D10: ='PERSONEL BİLGİLERİ'!D4 -> 0 | E10: =BORDRO!U7 -> 0
A11: 4 | B11: =BORDRO!C8 -> 0 | C11: ='PERSONEL BİLGİLERİ'!B5 -> 0 | D11: ='PERSONEL BİLGİLERİ'!D5 -> 0 | E11: =BORDRO!U8 -> 0
A12: 5 | B12: =BORDRO!C9 -> 0 | C12: ='PERSONEL BİLGİLERİ'!B6 -> 0 | D12: ='PERSONEL BİLGİLERİ'!D6 -> 0 | E12: =BORDRO!U9 -> 0
A13: 6 | B13: =BORDRO!C10 -> 0 | C13: ='PERSONEL BİLGİLERİ'!B7 -> 0 | D13: ='PERSONEL BİLGİLERİ'!D7 -> 0 | E13: =BORDRO!U10 -> 0
A14: 7 | B14: =BORDRO!C11 -> 0 | C14: ='PERSONEL BİLGİLERİ'!B8 -> 0 | D14: ='PERSONEL BİLGİLERİ'!D8 -> 0 | E14: =BORDRO!U11 -> 0
A15: 8 | B15: =BORDRO!C12 -> 0 | C15: ='PERSONEL BİLGİLERİ'!B9 -> 0 | D15: ='PERSONEL BİLGİLERİ'!D9 -> 0 | E15: =BORDRO!U12 -> 0
A16: 9 | B16: =BORDRO!C13 -> 0 | C16: ='PERSONEL BİLGİLERİ'!B10 -> 0 | D16: ='PERSONEL BİLGİLERİ'!D10 -> 0 | E16: =BORDRO!U13 -> 0
A17: 10 | B17: =BORDRO!C14 -> 0 | C17: ='PERSONEL BİLGİLERİ'!B11 -> 0 | D17: ='PERSONEL BİLGİLERİ'!D11 -> 0 | E17: =BORDRO!U14 -> 0
B39: Sayfa Toplamı : | E39: =SUM(E8:E38) -> 6706.722465
A41: Kayıtlarımıza uygundur.
A42: …./..../2021 | D42: …./..../2021
A43: Gerçekleştirme Görevlisi | D43: Harcama Yetkilisi
A44: ='KURUM BİLGİLERİ'!B12 -> Ümit YURTOĞLU | D44: ='KURUM BİLGİLERİ'!B13 -> Hüseyin BALTA
A45: ='KURUM BİLGİLERİ'!C12 -> Şube Müdürü | D45: ='KURUM BİLGİLERİ'!C13 -> İlçe Milli Eğitim Müdürü

Sheet VERGİ MATRAHI
A1: Sıra No | B1: Adı Soyadı | C1: OCAK | D1: ŞUBAT | E1: MART | F1: NİSAN | G1: MAYIS | H1: HAZİRAN | I1: TEMMUZ | J1: AĞUSTOS | K1: EYLÜL | L1: EKİM | M1: KASIM | N1: ARALIK | O1: TOPLAM
A2: 1 | B2: =BORDRO!B5 -> Ümit YURTOĞLU | C2: 2000 | D2: 4251.61 | O2: =SUM(C2:N2) -> 6251.61
A3: 2 | B3: =BORDRO!B6 -> Ali SEĞMEN | C3: 1500 | D3: 2780.47 | O3: =SUM(C3:N3) -> 4280.47
A4: 3 | B4: =BORDRO!B7 -> 0 | O4: 0
A5: 4 | B5: =BORDRO!B8 -> 0 | O5: 0
A6: 5 | B6: =BORDRO!B9 -> 0 | O6: 0
A7: 6 | B7: =BORDRO!B10 -> 0 | O7: 0
A8: 7 | B8: =BORDRO!B11 -> 0 | O8: 0
A9: 8 | B9: =BORDRO!B12 -> 0 | O9: 0
A10: 9 | B10: =BORDRO!B13 -> 0 | O10: 0
A11: 10 | B11: =BORDRO!B14 -> 0 | O11: 0
A13: AÇIKLAMALAR!!!
A14: 2021 YILI GELİR VERGİSİ DİLİMLERİ 24.000 TL'ye kadar 15% 53.000 TL'nin 24.000 TL'si için 3.600 TL, fazlası 20% 130.000 TL'nin 53.000 TL'si için 9.400 TL (ücret gelirlerinde 190.000 TL'nin 53.000 TL'si için 9.400 TL), fazlası 27% 650.000 TL'nin 130.000 TL'si için 30.190 TL (ücret gelirlerinde 650.000 TL'nin 190.000 TL'si için 46.390 TL), fazlası 35% 650.000 TL'den fazlasının 650.000 TL'si için 212.190 TL (ücret gelirlerinde 650.000 TL'den fazlasının 650.000 TL'si için 207.390 TL), fazlası 40%
A16: 1-) Ücretli öğretmenlerimiz yıl içerisinde %15'lik dilimden bir üst dilime geçemezler. Fakat %20'lik dilime geçme durumları ortaya çıkarsa Gelir Vergisi hesaplamasını %20'lik dilime yükseltmeniz gerekebilir. Bu durumda bordroda gelir vergisi sutununda ilgili öğretmeni %20 ile çarpınız.
A18: 2-) İşlemlerinizin sağlıklı olabilmesi için hesaplama yaptığınız her aya ait vergi matrahı kısmını yukarıdaki tabloya aktarınız. Toplam tutar bir üst dilime çıktığında 1. maddeye göre hareket ediniz.

Sheet ÖRNEK ÖEB
